[Event "Titled Tuesday Blitz June 27 Late 2023"]
[White "Hajiyev, Kanan"]
[Black "Velikanov, Alexander"]
[WhiteFideId "13404148"]
[BlackFideId "2039290"]
[WhiteElo "2536"]
[BlackElo "2693"]
[Result "1/2-1/2"]
[Round "4"]
[TimeControl "180+2"]
[Date "2023.06.27"]
[WhiteClock "0:00:08"]
[BlackClock "0:00:22"]
[Board "67"]

1. d4 {[%clk 0:03:00]}  g6 {[%clk 0:03:00]} 2. Nf3 {[%clk 0:03:00]}  Bg7 {[%clk 0:03:00]} 3. g3 {[%clk 0:03:01]}  c5 {[%clk 0:03:00]} 4. c3 {[%clk 0:02:59]}  b6 {[%clk 0:02:56]} 5. Bg2 {[%clk 0:02:59]}  Bb7 {[%clk 0:02:56]} 6. O-O {[%clk 0:02:59]}  Nf6 {[%clk 0:02:52]} 7. a4 {[%clk 0:02:58]}  Nc6 {[%clk 0:02:50]} 8. Bg5 {[%clk 0:02:53]}  O-O {[%clk 0:02:49]} 9. Ne5 {[%clk 0:02:47]}  d5 {[%clk 0:02:26]} 10. Nd2 {[%clk 0:02:29]}  Nxe5 {[%clk 0:02:21]} 11. dxe5 {[%clk 0:02:28]}  Ng4 {[%clk 0:02:22]} 12. e6 {[%clk 0:02:07]}  fxe6 {[%clk 0:02:17]} 13. Bh3 {[%clk 0:02:02]}  Ne5 {[%clk 0:01:57]} 14. Bxe6+ {[%clk 0:02:01]}  Kh8 {[%clk 0:01:57]} 15. Bh3 {[%clk 0:01:30]}  Nf7 {[%clk 0:01:47]} 16. Nf3 {[%clk 0:01:18]}  d4 {[%clk 0:01:45]} 17. Bd2 {[%clk 0:01:12]}  d3 {[%clk 0:01:25]} 18. Bg2 {[%clk 0:01:06]}  c4 {[%clk 0:01:25]} 19. exd3 {[%clk 0:01:03]}  cxd3 {[%clk 0:01:24]} 20. Re1 {[%clk 0:00:52]}  e5 {[%clk 0:01:23]} 21. Nxe5 {[%clk 0:00:43]}  Bxg2 {[%clk 0:01:13]} 22. Nxf7+ {[%clk 0:00:41]}  Rxf7 {[%clk 0:01:14]} 23. Kxg2 {[%clk 0:00:41]}  Qd5+ {[%clk 0:01:15]} 24. Kg1 {[%clk 0:00:34]}  Raf8 {[%clk 0:00:31]} 25. Be3 {[%clk 0:00:35]}  Rd7 {[%clk 0:00:32]} 26. Qd2 {[%clk 0:00:34]}  h5 {[%clk 0:00:30]} 27. h4 {[%clk 0:00:32]}  Qf5 {[%clk 0:00:26]} 28. Bg5 {[%clk 0:00:28]}  Qh3 {[%clk 0:00:21]} 29. Re3 {[%clk 0:00:25]}  Qf5 {[%clk 0:00:15]} 30. Rae1 {[%clk 0:00:20]}  Kh7 {[%clk 0:00:15]} 31. Bf4 {[%clk 0:00:17]}  Rfd8 {[%clk 0:00:12]} 32. Kg2 {[%clk 0:00:17]}  Rd5 {[%clk 0:00:12]} 33. Kg1 {[%clk 0:00:18]}  R8d7 {[%clk 0:00:12]} 34. Re4 {[%clk 0:00:18]}  Qf7 {[%clk 0:00:12]} 35. R1e3 {[%clk 0:00:17]}  a6 {[%clk 0:00:12]} 36. Rf3 {[%clk 0:00:17]}  Qg8 {[%clk 0:00:11]} 37. Kg2 {[%clk 0:00:18]}  Qa8 {[%clk 0:00:11]} 38. Kg1 {[%clk 0:00:18]}  Rf5 {[%clk 0:00:11]} 39. Rfe3 {[%clk 0:00:18]}  b5 {[%clk 0:00:11]} 40. axb5 {[%clk 0:00:18]}  axb5 {[%clk 0:00:12]} 41. Kh2 {[%clk 0:00:18]}  Rfd5 {[%clk 0:00:12]} 42. Re7 {[%clk 0:00:17]}  Qa2 {[%clk 0:00:10]} 43. Rxd7 {[%clk 0:00:14]}  Rxd7 {[%clk 0:00:11]} 44. Rxd3 {[%clk 0:00:14]}  Rxd3 {[%clk 0:00:12]} 45. Qxd3 {[%clk 0:00:15]}  Qxb2 {[%clk 0:00:12]} 46. Be3 {[%clk 0:00:15]}  Qxc3 {[%clk 0:00:12]} 47. Qxb5 {[%clk 0:00:14]}  Qf6 {[%clk 0:00:12]} 48. Qg5 {[%clk 0:00:14]}  Qxg5 {[%clk 0:00:12]} 49. Bxg5 {[%clk 0:00:15]}  Kg8 {[%clk 0:00:13]} 50. Kg2 {[%clk 0:00:16]}  Kf7 {[%clk 0:00:14]} 51. Kf3 {[%clk 0:00:16]}  Ke6 {[%clk 0:00:15]} 52. Ke4 {[%clk 0:00:17]}  Bf8 {[%clk 0:00:15]} 53. Bf4 {[%clk 0:00:16]}  Bg7 {[%clk 0:00:16]} 54. Be3 {[%clk 0:00:16]}  Bf6 {[%clk 0:00:16]} 55. f3 {[%clk 0:00:16]}  Be7 {[%clk 0:00:17]} 56. Bg5 {[%clk 0:00:15]}  Bd6 {[%clk 0:00:17]} 57. Bf4 {[%clk 0:00:15]}  Be7 {[%clk 0:00:17]} 58. Be3 {[%clk 0:00:15]}  Bf6 {[%clk 0:00:17]} 59. Bf2 {[%clk 0:00:15]}  Be7 {[%clk 0:00:18]} 60. Kf4 {[%clk 0:00:16]}  Bf6 {[%clk 0:00:18]} 61. Be1 {[%clk 0:00:15]}  Be7 {[%clk 0:00:19]} 62. Ke4 {[%clk 0:00:16]}  Bf6 {[%clk 0:00:19]} 63. g4 {[%clk 0:00:14]}  Be7 {[%clk 0:00:19]} 64. gxh5 {[%clk 0:00:14]}  gxh5 {[%clk 0:00:19]} 65. f4 {[%clk 0:00:14]}  Bf6 {[%clk 0:00:17]} 66. f5+ {[%clk 0:00:15]}  Kf7 {[%clk 0:00:17]} 67. Bg3 {[%clk 0:00:13]}  Be7 {[%clk 0:00:18]} 68. Kf4 {[%clk 0:00:10]}  Bf6 {[%clk 0:00:18]} 69. Kf3 {[%clk 0:00:10]}  Be7 {[%clk 0:00:19]} 70. Ke4 {[%clk 0:00:08]}  Bf6 {[%clk 0:00:19]} 71. Bf2 {[%clk 0:00:08]}  Be7 {[%clk 0:00:20]} 72. Kf4 {[%clk 0:00:08]}  Bf6 {[%clk 0:00:20]} 73. Kg3 {[%clk 0:00:07]}  Be5+ {[%clk 0:00:20]} 74. Kf3 {[%clk 0:00:04]}  Bf6 {[%clk 0:00:21]} 75. Be1 {[%clk 0:00:04]}  Be7 {[%clk 0:00:21]} 76. Kf4 {[%clk 0:00:04]}  Bf6 {[%clk 0:00:22]} 77. Ke4 {[%clk 0:00:05]}  Be7 {[%clk 0:00:22]} 78. Kd5 {[%clk 0:00:05]}  Bf6 {[%clk 0:00:23]} 79. Ke4 {[%clk 0:00:05]}  Be7 {[%clk 0:00:23]} 80. Bg3 {[%clk 0:00:06]}  Bf6 {[%clk 0:00:24]} 81. Bf2 {[%clk 0:00:05]}  Be7 {[%clk 0:00:24]} 82. Ke3 {[%clk 0:00:06]}  Bf6 {[%clk 0:00:25]} 83. Kf3 {[%clk 0:00:06]}  Be7 {[%clk 0:00:25]} 84. Kg2 {[%clk 0:00:07]}  Kf6 {[%clk 0:00:24]} 85. Kh3 {[%clk 0:00:06]}  Kxf5 {[%clk 0:00:24]} 86. Bg3 {[%clk 0:00:07]}  Ke4 {[%clk 0:00:25]} 87. Bf2 {[%clk 0:00:07]}  Kf3 {[%clk 0:00:25]} 88. Be1 {[%clk 0:00:08]}  Bd6 {[%clk 0:00:26]} 89. Bc3 {[%clk 0:00:08]}  Bf4 {[%clk 0:00:22]} 90. Bf6 {[%clk 0:00:08]} 1/2-1/2


[Site "https://www.chess.com"]

[Event "Titled Tuesday Blitz June 27 Late 2023"]
[White "Koc, Przemyslaw"]
[Black "Fernandez Guillen, Ernesto J."]
[WhiteFideId "1109081"]
[BlackFideId "3512428"]
[WhiteElo "2515"]
[BlackElo "2683"]
[Result "0-1"]
[Round "4"]
[TimeControl "180+2"]
[Date "2023.06.27"]
[WhiteClock "0:00:00"]
[BlackClock "0:00:05"]
[Board "70"]

1. d4 {[%clk 0:03:00]}  Nf6 {[%clk 0:02:39]} 2. Nf3 {[%clk 0:03:00]}  g6 {[%clk 0:02:39]} 3. Bg5 {[%clk 0:02:55]}  b6 {[%clk 0:02:39]} 4. Nbd2 {[%clk 0:02:54]}  Bb7 {[%clk 0:02:39]} 5. e3 {[%clk 0:02:51]}  Bg7 {[%clk 0:02:38]} 6. Bd3 {[%clk 0:02:50]}  d5 {[%clk 0:02:37]} 7. O-O {[%clk 0:02:49]}  Nbd7 {[%clk 0:02:36]} 8. c4 {[%clk 0:02:44]}  O-O {[%clk 0:02:30]} 9. cxd5 {[%clk 0:02:43]}  Nxd5 {[%clk 0:02:30]} 10. Rc1 {[%clk 0:02:42]}  c5 {[%clk 0:02:30]} 11. a3 {[%clk 0:02:38]}  a6 {[%clk 0:02:21]} 12. e4 {[%clk 0:02:35]}  N5f6 {[%clk 0:02:15]} 13. d5 {[%clk 0:02:34]}  h6 {[%clk 0:02:15]} 14. Bf4 {[%clk 0:02:32]}  Nh5 {[%clk 0:02:15]} 15. Be3 {[%clk 0:02:32]}  Bxb2 {[%clk 0:02:06]} 16. Bxh6 {[%clk 0:02:25]}  Bxc1 {[%clk 0:02:07]} 17. Qxc1 {[%clk 0:02:25]}  Re8 {[%clk 0:02:07]} 18. Qb2 {[%clk 0:02:19]}  e5 {[%clk 0:01:56]} 19. dxe6 {[%clk 0:02:12]}  Rxe6 {[%clk 0:01:55]} 20. Bc4 {[%clk 0:02:02]}  Qf6 {[%clk 0:01:47]} 21. Qb3 {[%clk 0:01:45]}  b5 {[%clk 0:01:26]} 22. Bxe6 {[%clk 0:01:43]}  Qxe6 {[%clk 0:01:26]} 23. Qb2 {[%clk 0:01:33]}  Re8 {[%clk 0:01:21]} 24. h3 {[%clk 0:01:25]}  Qf6 {[%clk 0:01:13]} 25. Qc2 {[%clk 0:01:21]}  c4 {[%clk 0:01:12]} 26. Rd1 {[%clk 0:01:16]}  Nf4 {[%clk 0:01:04]} 27. Bg5 {[%clk 0:01:12]}  Ne2+ {[%clk 0:01:04]} 28. Kf1 {[%clk 0:01:12]}  Qc3 {[%clk 0:01:04]} 29. Qb1 {[%clk 0:01:00]}  Qd3 {[%clk 0:00:32]} 30. Qxd3 {[%clk 0:00:43]}  cxd3 {[%clk 0:00:33]} 31. Ne1 {[%clk 0:00:43]}  Nc3 {[%clk 0:00:24]} 32. Rc1 {[%clk 0:00:41]}  Nxe4 {[%clk 0:00:25]} 33. Be3 {[%clk 0:00:34]}  Nxd2+ {[%clk 0:00:23]} 34. Bxd2 {[%clk 0:00:34]}  Ne5 {[%clk 0:00:23]} 35. Rc7 {[%clk 0:00:31]}  Bd5 {[%clk 0:00:19]} 36. Bc3 {[%clk 0:00:29]}  Bc4 {[%clk 0:00:14]} 37. Kg1 {[%clk 0:00:30]}  g5 {[%clk 0:00:12]} 38. g3 {[%clk 0:00:27]}  Kh7 {[%clk 0:00:12]} 39. f4 {[%clk 0:00:26]}  gxf4 {[%clk 0:00:11]} 40. gxf4 {[%clk 0:00:27]}  Ng6 {[%clk 0:00:11]} 41. Ng2 {[%clk 0:00:22]}  Re2 {[%clk 0:00:08]} 42. f5 {[%clk 0:00:20]}  Ne5 {[%clk 0:00:08]} 43. Nf4 {[%clk 0:00:09]}  Nf3+ {[%clk 0:00:07]} 44. Kf1 {[%clk 0:00:06]}  Rc2 {[%clk 0:00:05]} 45. Ng2 {[%clk 0:00:00]}  d2+ {[%clk 0:00:05]} 0-1


[Site "https://www.chess.com"]

[Event "Titled Tuesday Blitz June 27 Late 2023"]
[White "Prestia, Paris"]
[Black "Koutsin, Sergey"]
[WhiteFideId "30925959"]
[BlackFideId "14101483"]
[WhiteElo "2682"]
[BlackElo "2507"]
[Result "0-1"]
[Round "4"]
[TimeControl "180+2"]
[Date "2023.06.27"]
[WhiteClock "0:00:19"]
[BlackClock "0:00:17"]
[Board "71"]

1. d4 {[%clk 0:03:00]}  Nf6 {[%clk 0:02:57]} 2. Bg5 {[%clk 0:02:59]}  e6 {[%clk 0:02:57]} 3. Nd2 {[%clk 0:02:59]}  d5 {[%clk 0:02:56]} 4. e3 {[%clk 0:02:59]}  h6 {[%clk 0:02:54]} 5. Bh4 {[%clk 0:02:59]}  c5 {[%clk 0:02:53]} 6. c3 {[%clk 0:02:59]}  Qb6 {[%clk 0:02:45]} 7. Qb3 {[%clk 0:02:58]}  Nc6 {[%clk 0:02:33]} 8. Bb5 {[%clk 0:02:39]}  Bd7 {[%clk 0:02:27]} 9. Ngf3 {[%clk 0:02:35]}  cxd4 {[%clk 0:02:18]} 10. exd4 {[%clk 0:02:32]}  Bd6 {[%clk 0:02:18]} 11. Bd3 {[%clk 0:02:27]}  Qc7 {[%clk 0:02:04]} 12. Bg3 {[%clk 0:02:22]}  O-O {[%clk 0:02:01]} 13. O-O {[%clk 0:02:21]}  a6 {[%clk 0:01:55]} 14. a4 {[%clk 0:02:08]}  Rac8 {[%clk 0:01:51]} 15. Rfe1 {[%clk 0:02:06]}  Bxg3 {[%clk 0:01:47]} 16. hxg3 {[%clk 0:02:06]}  Rfd8 {[%clk 0:01:39]} 17. Ne5 {[%clk 0:02:05]}  Be8 {[%clk 0:01:40]} 18. Ndf3 {[%clk 0:02:02]}  Nxe5 {[%clk 0:01:30]} 19. Nxe5 {[%clk 0:02:03]}  Nd7 {[%clk 0:01:30]} 20. a5 {[%clk 0:02:03]}  Nf8 {[%clk 0:01:12]} 21. Qa3 {[%clk 0:01:59]}  Rd6 {[%clk 0:01:09]} 22. Re2 {[%clk 0:01:52]}  Rb8 {[%clk 0:01:07]} 23. f4 {[%clk 0:01:37]}  b5 {[%clk 0:01:06]} 24. axb6 {[%clk 0:01:33]}  Rdxb6 {[%clk 0:01:06]} 25. b4 {[%clk 0:01:32]}  Bb5 {[%clk 0:00:59]} 26. Bxb5 {[%clk 0:01:31]}  axb5 {[%clk 0:00:57]} 27. Nd3 {[%clk 0:01:30]}  Nd7 {[%clk 0:00:30]} 28. Nc5 {[%clk 0:01:29]}  Qc6 {[%clk 0:00:27]} 29. Qa7 {[%clk 0:01:19]}  Nf6 {[%clk 0:00:27]} 30. Qe7 {[%clk 0:00:49]}  Re8 {[%clk 0:00:27]} 31. Qa7 {[%clk 0:00:49]}  Ne4 {[%clk 0:00:23]} 32. Nxe4 {[%clk 0:00:32]}  dxe4 {[%clk 0:00:23]} 33. Qa3 {[%clk 0:00:18]}  Rc8 {[%clk 0:00:19]} 34. Re3 {[%clk 0:00:14]}  f5 {[%clk 0:00:19]} 35. Qa2 {[%clk 0:00:14]}  Qc4 {[%clk 0:00:18]} 36. Qxc4 {[%clk 0:00:14]}  Rxc4 {[%clk 0:00:18]} 37. Ra3 {[%clk 0:00:14]}  g5 {[%clk 0:00:17]} 38. Kf2 {[%clk 0:00:14]}  Kf7 {[%clk 0:00:17]} 39. Ra7+ {[%clk 0:00:13]}  Kf6 {[%clk 0:00:17]} 40. Rh7 {[%clk 0:00:12]}  Kg6 {[%clk 0:00:17]} 41. Ra7 {[%clk 0:00:13]}  Rbc6 {[%clk 0:00:17]} 42. Ra3 {[%clk 0:00:12]}  Kh5 {[%clk 0:00:17]} 43. Ke2 {[%clk 0:00:08]}  Kg4 {[%clk 0:00:17]} 44. fxg5 {[%clk 0:00:09]}  hxg5 {[%clk 0:00:18]} 45. Kd2 {[%clk 0:00:09]}  Rd6 {[%clk 0:00:16]} 46. Kc2 {[%clk 0:00:09]}  Rd5 {[%clk 0:00:15]} 47. Ra6 {[%clk 0:00:09]}  e5 {[%clk 0:00:15]} 48. dxe5 {[%clk 0:00:09]}  Rxe5 {[%clk 0:00:16]} 49. Rf6 {[%clk 0:00:09]}  f4 {[%clk 0:00:15]} 50. gxf4 {[%clk 0:00:10]}  gxf4 {[%clk 0:00:16]} 51. Re1 {[%clk 0:00:09]}  e3 {[%clk 0:00:16]} 52. Rg6+ {[%clk 0:00:10]}  Rg5 {[%clk 0:00:16]} 53. Rxg5+ {[%clk 0:00:10]}  Kxg5 {[%clk 0:00:16]} 54. Kd3 {[%clk 0:00:10]}  Kg4 {[%clk 0:00:16]} 55. Re2 {[%clk 0:00:11]}  Rc7 {[%clk 0:00:15]} 56. Ke4 {[%clk 0:00:11]}  Re7+ {[%clk 0:00:15]} 57. Kd5 {[%clk 0:00:12]}  f3 {[%clk 0:00:14]} 58. gxf3+ {[%clk 0:00:12]}  Kxf3 {[%clk 0:00:15]} 59. Re1 {[%clk 0:00:13]}  e2 {[%clk 0:00:15]} 60. Kc5 {[%clk 0:00:13]}  Re5+ {[%clk 0:00:15]} 61. Kd4 {[%clk 0:00:13]}  Rh5 {[%clk 0:00:15]} 62. Ra1 {[%clk 0:00:12]}  Kf2 {[%clk 0:00:15]} 63. c4 {[%clk 0:00:13]}  Rh4+ {[%clk 0:00:15]} 64. Kc5 {[%clk 0:00:13]}  bxc4 {[%clk 0:00:15]} 65. b5 {[%clk 0:00:14]}  e1=Q {[%clk 0:00:15]} 66. Rxe1 {[%clk 0:00:14]}  Kxe1 {[%clk 0:00:16]} 67. Kb6 {[%clk 0:00:15]}  c3 {[%clk 0:00:16]} 68. Ka7 {[%clk 0:00:15]}  c2 {[%clk 0:00:17]} 69. b6 {[%clk 0:00:16]}  c1=Q {[%clk 0:00:17]} 70. b7 {[%clk 0:00:17]}  Qa3+ {[%clk 0:00:18]} 71. Kb8 {[%clk 0:00:18]}  Qb4 {[%clk 0:00:17]} 72. Kc8 {[%clk 0:00:19]}  Rh8+ {[%clk 0:00:17]} 73. Kc7 {[%clk 0:00:20]}  Qc5+ {[%clk 0:00:16]} 74. Kd7 {[%clk 0:00:20]}  Qb6 {[%clk 0:00:16]} 75. Ke7 {[%clk 0:00:21]}  Ra8 {[%clk 0:00:16]} 76. Kf7 {[%clk 0:00:22]}  Rb8 {[%clk 0:00:16]} 77. Ke7 {[%clk 0:00:18]}  Rxb7+ {[%clk 0:00:16]} 78. Kf8 {[%clk 0:00:19]}  Qa7 {[%clk 0:00:16]} 79. Ke8 {[%clk 0:00:19]}  Qa8# {[%clk 0:00:17]} 0-1


[Site "https://www.chess.com"]

[Event "Titled Tuesday Blitz June 27 Late 2023"]
[White "Cuenca Jimenez, Jose Fernando"]
[Black "Luong Phuong Hanh"]
[WhiteFideId "2255570"]
[BlackFideId "12401013"]
[WhiteElo "2673"]
[BlackElo "2462"]
[Result "1-0"]
[Round "4"]
[TimeControl "180+2"]
[Date "2023.06.27"]
[WhiteClock "0:01:57"]
[BlackClock "0:00:00"]
[Board "75"]

1. c4 {[%clk 0:03:00]}  Nf6 {[%clk 0:02:59]} 2. Nc3 {[%clk 0:02:59]}  d5 {[%clk 0:02:58]} 3. cxd5 {[%clk 0:02:58]}  Nxd5 {[%clk 0:02:59]} 4. Nf3 {[%clk 0:02:57]}  g6 {[%clk 0:02:57]} 5. h4 {[%clk 0:02:58]}  h6 {[%clk 0:02:55]} 6. g3 {[%clk 0:02:51]}  Bg7 {[%clk 0:02:54]} 7. Bg2 {[%clk 0:02:52]}  Nb6 {[%clk 0:02:51]} 8. O-O {[%clk 0:02:51]}  O-O {[%clk 0:02:52]} 9. d3 {[%clk 0:02:51]}  Nc6 {[%clk 0:02:52]} 10. Bd2 {[%clk 0:02:51]}  Bg4 {[%clk 0:02:53]} 11. a3 {[%clk 0:02:48]}  Qd7 {[%clk 0:02:49]} 12. Re1 {[%clk 0:02:47]}  Rad8 {[%clk 0:02:44]} 13. Rc1 {[%clk 0:02:47]}  Rfe8 {[%clk 0:02:16]} 14. b4 {[%clk 0:02:44]}  e5 {[%clk 0:02:14]} 15. Ne4 {[%clk 0:02:44]}  Bxf3 {[%clk 0:02:01]} 16. Bxf3 {[%clk 0:02:44]}  Nd4 {[%clk 0:02:02]} 17. Bxh6 {[%clk 0:02:32]}  Nxf3+ {[%clk 0:02:01]} 18. exf3 {[%clk 0:02:33]}  Qxd3 {[%clk 0:02:00]} 19. Qxd3 {[%clk 0:02:30]}  Rxd3 {[%clk 0:02:01]} 20. Bxg7 {[%clk 0:02:31]}  Kxg7 {[%clk 0:01:57]} 21. Rxc7 {[%clk 0:02:31]}  Rd7 {[%clk 0:01:33]} 22. Rec1 {[%clk 0:02:26]}  Ree7 {[%clk 0:01:30]} 23. R7c3 {[%clk 0:02:18]}  Na4 {[%clk 0:01:23]} 24. Re3 {[%clk 0:02:16]}  b6 {[%clk 0:01:15]} 25. Kg2 {[%clk 0:02:14]}  Rc7 {[%clk 0:01:10]} 26. Rd1 {[%clk 0:02:08]}  Rc2 {[%clk 0:01:03]} 27. Nd6 {[%clk 0:02:08]}  f6 {[%clk 0:00:25]} 28. f4 {[%clk 0:02:05]}  Nc3 {[%clk 0:00:17]} 29. Rdd3 {[%clk 0:02:03]}  Na4 {[%clk 0:00:09]} 30. fxe5 {[%clk 0:02:02]}  fxe5 {[%clk 0:00:10]} 31. Rd5 {[%clk 0:02:01]}  e4 {[%clk 0:00:05]} 32. Rxe4 {[%clk 0:01:58]}  Rxe4 {[%clk 0:00:05]} 33. Nxe4 {[%clk 0:01:59]}  Ra2 {[%clk 0:00:05]} 34. Rd7+ {[%clk 0:01:58]}  Kh6 {[%clk 0:00:05]} 35. Ng5 {[%clk 0:01:57]}  Kh5 {[%clk 0:00:00]} 36. Kh3 {[%clk 0:01:57]} 1-0


[Site "https://www.chess.com"]

[Event "Titled Tuesday Blitz June 27 Late 2023"]
[White "Herman, Daniel"]
[Black "Alex_Sahakyan2006"]
[WhiteFideId "30935008"]
[WhiteElo "2460"]
[BlackElo "2672"]
[Result "0-1"]
[Round "4"]
[TimeControl "180+2"]
[Date "2023.06.27"]
[WhiteClock "0:00:06"]
[BlackClock "0:00:25"]
[Board "76"]

1. e4 {[%clk 0:03:00]}  c6 {[%clk 0:02:55]} 2. d4 {[%clk 0:02:58]}  d5 {[%clk 0:02:56]} 3. e5 {[%clk 0:02:59]}  c5 {[%clk 0:02:51]} 4. dxc5 {[%clk 0:02:57]}  Nc6 {[%clk 0:02:50]} 5. f4 {[%clk 0:02:54]}  Bf5 {[%clk 0:02:45]} 6. Nf3 {[%clk 0:02:52]}  e6 {[%clk 0:02:42]} 7. Be3 {[%clk 0:02:51]}  Nh6 {[%clk 0:02:34]} 8. c3 {[%clk 0:02:39]}  Bg4 {[%clk 0:02:26]} 9. Nbd2 {[%clk 0:02:32]}  Nf5 {[%clk 0:02:24]} 10. Bf2 {[%clk 0:02:32]}  d4 {[%clk 0:02:22]} 11. Ne4 {[%clk 0:02:16]}  Qd5 {[%clk 0:02:00]} 12. Bd3 {[%clk 0:02:11]}  Bxc5 {[%clk 0:01:50]} 13. c4 {[%clk 0:02:00]}  Bb4+ {[%clk 0:01:48]} 14. Kf1 {[%clk 0:02:01]}  Qd8 {[%clk 0:01:46]} 15. h3 {[%clk 0:01:54]}  Bxf3 {[%clk 0:01:42]} 16. Qxf3 {[%clk 0:01:55]}  O-O {[%clk 0:01:32]} 17. g4 {[%clk 0:01:39]}  Ne3+ {[%clk 0:01:31]} 18. Ke2 {[%clk 0:01:25]}  f5 {[%clk 0:01:21]} 19. exf6 {[%clk 0:01:16]}  gxf6 {[%clk 0:01:19]} 20. g5 {[%clk 0:00:52]}  f5 {[%clk 0:01:14]} 21. Nf6+ {[%clk 0:00:50]}  Kh8 {[%clk 0:01:03]} 22. Nxh7 {[%clk 0:00:38]}  Kxh7 {[%clk 0:00:58]} 23. Qh5+ {[%clk 0:00:36]}  Kg7 {[%clk 0:00:58]} 24. Qh6+ {[%clk 0:00:29]}  Kf7 {[%clk 0:00:57]} 25. g6+ {[%clk 0:00:23]}  Ke8 {[%clk 0:00:53]} 26. g7 {[%clk 0:00:21]}  Kd7 {[%clk 0:00:42]} 27. gxf8=Q {[%clk 0:00:19]}  Bxf8 {[%clk 0:00:43]} 28. Qh7+ {[%clk 0:00:19]}  Be7 {[%clk 0:00:41]} 29. Rhg1 {[%clk 0:00:16]}  Qb6 {[%clk 0:00:41]} 30. b3 {[%clk 0:00:13]}  Qb4 {[%clk 0:00:40]} 31. Rgc1 {[%clk 0:00:09]}  a5 {[%clk 0:00:35]} 32. Rab1 {[%clk 0:00:09]}  Rf8 {[%clk 0:00:31]} 33. Bxe3 {[%clk 0:00:08]}  dxe3 {[%clk 0:00:31]} 34. Rd1 {[%clk 0:00:09]}  Kc8 {[%clk 0:00:27]} 35. c5 {[%clk 0:00:09]}  Qxf4 {[%clk 0:00:25]} 36. Rf1 {[%clk 0:00:08]}  Nd4+ {[%clk 0:00:25]} 37. Kd1 {[%clk 0:00:08]}  Qh2 {[%clk 0:00:25]} 38. Be2 {[%clk 0:00:09]}  Qxe2+ {[%clk 0:00:24]} 39. Kc1 {[%clk 0:00:06]}  Qd2# {[%clk 0:00:25]} 0-1


[Site "https://www.chess.com"]

[Event "Titled Tuesday Blitz June 27 Late 2023"]
[White "Papp, Levente"]
[Black "Karthik, Advaith"]
[WhiteFideId "751243"]
[BlackFideId "30946050"]
[WhiteElo "2654"]
[BlackElo "2447"]
[Result "1-0"]
[Round "4"]
[TimeControl "180+2"]
[Date "2023.06.27"]
[WhiteClock "0:00:21"]
[BlackClock "0:00:00"]
[Board "80"]

1. b3 {[%clk 0:03:00]}  d5 {[%clk 0:02:57]} 2. Bb2 {[%clk 0:03:01]}  c5 {[%clk 0:02:57]} 3. e3 {[%clk 0:03:01]}  Nc6 {[%clk 0:02:57]} 4. Nf3 {[%clk 0:03:01]}  a6 {[%clk 0:02:56]} 5. d4 {[%clk 0:02:59]}  Bg4 {[%clk 0:02:54]} 6. Be2 {[%clk 0:02:58]}  e6 {[%clk 0:02:54]} 7. O-O {[%clk 0:02:56]}  Nf6 {[%clk 0:02:54]} 8. c4 {[%clk 0:02:54]}  cxd4 {[%clk 0:02:51]} 9. Nxd4 {[%clk 0:02:51]}  Bxe2 {[%clk 0:02:51]} 10. Qxe2 {[%clk 0:02:52]}  Nxd4 {[%clk 0:02:50]} 11. Bxd4 {[%clk 0:02:52]}  Be7 {[%clk 0:02:48]} 12. cxd5 {[%clk 0:02:47]}  Qxd5 {[%clk 0:02:46]} 13. Nc3 {[%clk 0:02:47]}  Qa5 {[%clk 0:02:38]} 14. Na4 {[%clk 0:02:42]}  O-O {[%clk 0:02:34]} 15. Rac1 {[%clk 0:02:41]}  Qb5 {[%clk 0:02:29]} 16. Qf3 {[%clk 0:02:34]}  Rac8 {[%clk 0:02:23]} 17. Qg3 {[%clk 0:02:01]}  Nh5 {[%clk 0:01:59]} 18. Qf3 {[%clk 0:02:00]}  Nf6 {[%clk 0:01:46]} 19. Rxc8 {[%clk 0:01:40]}  Rxc8 {[%clk 0:01:46]} 20. Nb6 {[%clk 0:01:40]}  Rc6 {[%clk 0:01:42]} 21. Nc4 {[%clk 0:01:39]}  Nd7 {[%clk 0:01:20]} 22. Rd1 {[%clk 0:01:37]}  Rc8 {[%clk 0:01:11]} 23. Qg3 {[%clk 0:01:27]}  f6 {[%clk 0:00:57]} 24. Qg4 {[%clk 0:01:27]}  Nf8 {[%clk 0:00:52]} 25. h4 {[%clk 0:01:10]}  Rd8 {[%clk 0:00:50]} 26. h5 {[%clk 0:01:06]}  e5 {[%clk 0:00:48]} 27. Bb2 {[%clk 0:01:06]}  Rxd1+ {[%clk 0:00:39]} 28. Qxd1 {[%clk 0:01:07]}  Qd7 {[%clk 0:00:39]} 29. Qf3 {[%clk 0:01:05]}  Ne6 {[%clk 0:00:30]} 30. h6 {[%clk 0:01:00]}  g6 {[%clk 0:00:30]} 31. Nb6 {[%clk 0:01:00]}  Qd2 {[%clk 0:00:24]} 32. Nd5 {[%clk 0:00:46]}  Qxb2 {[%clk 0:00:18]} 33. Nxe7+ {[%clk 0:00:46]}  Kf7 {[%clk 0:00:18]} 34. Qxb7 {[%clk 0:00:43]}  Qc1+ {[%clk 0:00:14]} 35. Kh2 {[%clk 0:00:43]}  Qc7 {[%clk 0:00:15]} 36. Qxc7 {[%clk 0:00:42]}  Nxc7 {[%clk 0:00:15]} 37. Nc6 {[%clk 0:00:42]}  Ke6 {[%clk 0:00:15]} 38. Nb4 {[%clk 0:00:33]}  Kd6 {[%clk 0:00:14]} 39. Nd3 {[%clk 0:00:31]}  Kd5 {[%clk 0:00:13]} 40. f3 {[%clk 0:00:29]}  a5 {[%clk 0:00:13]} 41. Kg3 {[%clk 0:00:26]}  Nb5 {[%clk 0:00:10]} 42. Kf2 {[%clk 0:00:26]}  Nc3 {[%clk 0:00:09]} 43. a4 {[%clk 0:00:23]}  g5 {[%clk 0:00:08]} 44. Ke1 {[%clk 0:00:20]}  e4 {[%clk 0:00:08]} 45. Nf2 {[%clk 0:00:19]}  f5 {[%clk 0:00:07]} 46. fxe4+ {[%clk 0:00:19]}  fxe4 {[%clk 0:00:06]} 47. Ng4 {[%clk 0:00:19]}  Ke6 {[%clk 0:00:03]} 48. Nf2 {[%clk 0:00:20]}  Kf5 {[%clk 0:00:03]} 49. Kd2 {[%clk 0:00:20]}  Nd5 {[%clk 0:00:03]} 50. Nd1 {[%clk 0:00:19]}  Kg6 {[%clk 0:00:04]} 51. Nc3 {[%clk 0:00:20]}  Nf6 {[%clk 0:00:01]} 52. b4 {[%clk 0:00:20]}  axb4 {[%clk 0:00:00]} 53. Nb5 {[%clk 0:00:21]} 1-0


[Site "https://www.chess.com"]